bitfinex/quotes_BTCUSD_20250526
["timestamp","ask_amount","ask_price","bid_price","bid_amount"]
[1748264061811,0.23047132,109900.0,109890.0,5.72169423]
[1748264062035,0.03938861,109900.0,109890.0,6.62002999]
[1748264062227,0.03938861,109900.0,109890.0,6.98517761]
[1748264062439,0.03938861,109900.0,109890.0,6.62102999]
[1748264062653,0.02119101,109900.0,109890.0,7.00907761]
[1748264062869,0.06020923,109910.0,109900.0,0.54928015]
[1748264063091,0.07840534,109910.0,109900.0,6.37807539]
[1748264063285,0.04201378,109910.0,109900.0,6.60926985]
[1748264063488,0.01823388,109920.0,109910.0,0.59976112]
[1748264063721,0.02733115,109920.0,109910.0,6.7115635]
[1748264063943,0.01823388,109920.0,109910.0,6.7115635]
[1748264064130,0.01823388,109920.0,109910.0,6.72235695]
[1748264064417,4e-05,109920.0,109910.0,6.81190251]
[1748264064624,0.00913686,109920.0,109910.0,6.81190251]
[1748264064847,4e-05,109920.0,109910.0,6.81190251]
[1748264065062,0.06001853,109930.0,109920.0,0.54924207]
[1748264065302,0.06926388,109930.0,109920.0,6.44278287]
[1748264065511,0.07836041,109930.0,109920.0,6.44278287]
[1748264065788,0.2281786,109930.0,109920.0,6.45063483]
[1748264066026,0.2281786,109930.0,109920.0,6.45973194]
[1748264066256,0.04624465,109930.0,109920.0,6.46882888]
[1748264066467,0.01895573,109930.0,109920.0,6.49382888]
[1748264066682,0.01895573,109930.0,109920.0,6.8579765]
[1748264067124,0.02805184,109930.0,109920.0,6.8579765]
[1748264067331,0.03714796,109930.0,109920.0,6.8579765]
[1748264067546,0.02805176,109930.0,109920.0,6.8579765]
[1748264067754,0.01168477,109930.0,109920.0,6.86876995]
[1748264067995,0.02987716,109930.0,109920.0,6.86876995]
[1748264068242,0.00441381,109930.0,109920.0,6.80734233]
[1748264068459,0.02260596,109930.0,109920.0,6.86876995]
[1748264068668,0.02260596,109930.0,109920.0,6.80734233]
[1748264068871,0.02260596,109930.0,109920.0,7.17148995]
[1748264069085,0.02260587,109930.0,109920.0,6.50462233]
[1748264069296,0.19680443,109950.0,109940.0,0.34]
[1748264069297,0.16468858,109950.0,109940.0,0.34]
[1748264069543,0.21831389,109960.0,109950.0,0.54650086]
[1748264069810,0.02018636,109970.0,109960.0,0.54007233]
[1748264070025,0.20220342,109970.0,109960.0,5.75414762]
[1748264070250,0.25237113,109980.0,109960.0,6.1755901]
[1748264070472,0.25237113,109980.0,109970.0,5.96925624]
[1748264070700,0.27044732,109980.0,109970.0,5.98744275]
[1748264070910,0.08859559,109980.0,109970.0,6.00439165]
[1748264071135,0.28863178,109980.0,109970.0,6.01348462]
[1748264071348,0.2805398,109980.0,109970.0,6.0086915]
[1748264071561,0.27144757,109980.0,109970.0,6.0086915]
[1748264071781,0.27044757,109980.0,109970.0,6.0086915]
[1748264071993,0.27044757,109980.0,109970.0,5.65277469]
[1748264072422,0.27044757,109980.0,109970.0,5.99277469]
[1748264072642,0.25226262,109980.0,109970.0,5.78362709]
[1748264073331,0.27846262,109980.0,109970.0,5.78362709]
[1748264073559,0.27846262,109980.0,109970.0,0.7063098]
[1748264073560,0.66129242,109980.0,109970.0,0.7063098]
[1748264073771,0.96129242,109980.0,109970.0,1.06959509]
[1748264073989,0.96129242,109980.0,109970.0,1.39264619]
[1748264075073,0.96229242,109980.0,109970.0,1.39264619]
[1748264075276,0.96329242,109980.0,109970.0,1.39264619]
[1748264075484,0.66229242,109980.0,109970.0,1.39264619]
[1748264075693,0.57474686,109980.0,109970.0,1.39264619]
[1748264076127,0.57374686,109980.0,109970.0,1.39264619]
[1748264077259,0.27374686,109980.0,109970.0,1.39264619]
[1748264077468,0.27574686,109980.0,109970.0,1.53808619]
[1748264077687,0.25034686,109980.0,109970.0,1.39264619]
[1748264077889,0.25034686,109980.0,109970.0,1.53808619]
[1748264080078,0.22414686,109980.0,109970.0,1.73814049]
[1748264080283,0.22414686,109980.0,109970.0,1.73814065]
[1748264080718,0.23323933,109980.0,109970.0,1.76304032]
[1748264080982,0.24233156,109980.0,109970.0,1.59941397]
[1748264081212,0.24233156,109980.0,109970.0,1.75390719]
[1748264081440,0.24033156,109980.0,109970.0,1.76300033]
[1748264081596,0.23933156,109980.0,109970.0,1.75390719]
[1748264081800,0.24842403,109980.0,109970.0,1.77209322]
[1748264082008,0.25851659,109980.0,109970.0,1.76300033]
[1748264082569,0.24942428,109980.0,109970.0,1.75390719]
[1748264082780,0.24942428,109980.0,109970.0,1.76300033]
[1748264083002,0.95318968,109990.0,109980.0,0.59083594]
[1748264083200,0.30334768,110000.0,109980.0,0.59083594]
[1748264083201,0.09203762,110000.0,109990.0,0.59990891]
[1748264083399,0.09203762,110000.0,109990.0,6.68454785]
[1748264083603,0.0847701,110000.0,109990.0,6.68454785]
[1748264083992,0.07750258,110000.0,109990.0,6.68454785]
[1748264084214,0.02945174,110000.0,109990.0,6.5536887]
[1748264084337,0.01945532,110000.0,109990.0,6.5300567]
[1748264084537,0.02854565,110000.0,109990.0,6.46602505]
[1748264084789,0.03763606,110000.0,109990.0,6.07773976]
[1748264085061,0.03763606,110000.0,109990.0,5.47954556]
[1748264085268,0.03763606,110000.0,109990.0,5.74252]
[1748264085269,0.21945473,110000.0,109990.0,5.74252]
[1748264085471,0.21945473,110000.0,109990.0,5.56068529]
[1748264085653,0.21945473,110000.0,109990.0,5.60621165]
[1748264085868,0.21945473,110000.0,109990.0,5.41528529]
[1748264086202,0.21036424,110000.0,109990.0,5.90068529]
[1748264086622,0.21036424,110000.0,109990.0,5.75528529]
[1748264086830,0.26156424,110000.0,109990.0,3.426488]
[1748264087398,0.26156424,110000.0,109990.0,3.64437329]
[1748264087599,0.3511098,110000.0,109990.0,3.64437329]
[1748264088004,0.3511098,110000.0,109990.0,3.281088]
[1748264088408,0.35954823,110000.0,109990.0,3.281088]
[1748264088941,0.65954823,110000.0,109990.0,3.281088]
[1748264089926,0.80490823,110000.0,109990.0,2.443819]
[1748264090139,0.80490823,110000.0,109990.0,0.004]
[1748264090326,1.10490823,110000.0,109990.0,0.51289]
[1748264090535,1.26202823,110000.0,109990.0,0.363329]
[1748264090729,1.26202823,110000.0,109990.0,0.166113]
[1748264090930,1.26202823,110000.0,109990.0,0.164113]
[1748264091139,1.26202823,110000.0,109990.0,0.342]
[1748264091540,1.33985437,110000.0,109990.0,0.342]
[1748264091740,0.97656908,110000.0,109990.0,0.342]
[1748264091994,0.62288908,110000.0,109990.0,0.342]
[1748264092201,0.78080823,110000.0,109990.0,0.342]
[1748264092409,0.80460823,110000.0,109990.0,0.677078]
[1748264092637,0.65924823,110000.0,109990.0,0.677078]
[1748264092810,0.80760823,110000.0,109990.0,0.677078]
[1748264093175,0.80460823,110000.0,109990.0,0.6418]
[1748264093379,0.80460823,110000.0,109990.0,0.623563]
[1748264093603,0.80860823,110000.0,109990.0,0.623563]
[1748264093799,0.80660823,110000.0,109990.0,0.623563]
[1748264094232,0.80860823,110000.0,109990.0,0.623563]
[1748264094661,0.20003577,109980.0,109970.0,0.0865157]
[1748264094801,0.34539577,109980.0,109970.0,4.4987197]
[1748264095668,0.20003577,109980.0,109970.0,4.4987197]
[1748264095872,0.34539577,109980.0,109970.0,4.4997197]
[1748264096111,0.3538342,109980.0,109970.0,4.4997197]
[1748264096525,0.3538342,109980.0,109970.0,4.51051315]
[1748264096726,0.3538342,109980.0,109970.0,4.51151315]
[1748264097273,0.34539577,109980.0,109970.0,4.51151315]
[1748264097687,0.34539577,109980.0,109970.0,4.43839035]
[1748264098254,0.34539577,109980.0,109970.0,2.86085435]
[1748264098472,0.78484133,109980.0,109970.0,1.67505735]
[1748264099906,0.78484133,109980.0,109970.0,1.60959635]
[1748264100371,0.79332783,109980.0,109970.0,1.60959635]
[1748264100990,0.79332783,109980.0,109970.0,1.5988029]
[1748264102270,0.79332783,109980.0,109970.0,1.4301459]
[1748264104761,0.78484133,109980.0,109970.0,1.4301459]
[1748264107066,0.78484133,109980.0,109970.0,1.4103329]
[1748264107281,0.65710218,109980.0,109970.0,0.002]
[1748264107519,0.6655875,109980.0,109970.0,0.002]
[1748264108227,0.790961,109970.0,109960.0,0.002]
[1748264108439,0.93350656,109970.0,109960.0,1.461739]
[1748264109283,0.88362656,109970.0,109960.0,1.461739]
[1748264110196,0.88362656,109970.0,109960.0,1.462739]
[1748264110446,0.88362656,109970.0,109960.0,1.463739]
[1748264110666,0.88362656,109970.0,109960.0,0.489291]
[1748264110667,0.93732656,109970.0,109960.0,0.489291]
[1748264110920,0.93732656,109970.0,109960.0,0.451175]
[1748264111672,0.93732656,109970.0,109960.0,0.004]
[1748264111899,0.64874741,109970.0,109960.0,0.004]
[1748264112108,0.63420656,109970.0,109960.0,0.004]
[1748264112330,0.88050656,109970.0,109960.0,0.004]
[1748264112550,0.58366656,109970.0,109960.0,0.343]
[1748264112784,0.58262456,109970.0,109960.0,2.262148]
[1748264112999,0.58262456,109970.0,109960.0,2.409438]
[1748264113221,0.58062456,109970.0,109960.0,2.409438]
[1748264113437,0.58062456,109970.0,109960.0,2.408438]
[1748264113660,0.58262456,109970.0,109960.0,2.408438]
[1748264114076,0.58062456,109970.0,109960.0,2.408438]
[1748264114300,0.58162456,109970.0,109960.0,2.408438]
[1748264114511,0.58162456,109970.0,109960.0,1.921862]
[1748264115140,0.58262456,109970.0,109960.0,1.921862]
[1748264116713,0.27946456,109970.0,109960.0,2.28535307]
[1748264116958,0.42486456,109970.0,109960.0,2.28535307]
[1748264118184,0.42486456,109970.0,109960.0,2.29614652]
[1748264118831,0.27946456,109970.0,109960.0,2.29614652]
[1748264119090,0.42486456,109970.0,109960.0,2.29614652]
[1748264119532,0.42486456,109970.0,109960.0,1.29057245]
[1748264120836,0.42486456,109970.0,109960.0,1.65406352]
[1748264121239,0.72486456,109970.0,109960.0,1.65406352]
[1748264123517,0.72486456,109970.0,109960.0,1.29057245]
[1748264123726,0.72486456,109970.0,109960.0,1.65406352]
[1748264129930,0.78156456,109970.0,109960.0,0.35279345]
[1748264130153,0.48156456,109970.0,109960.0,0.01279345]
[1748264131154,0.48156456,109970.0,109960.0,0.002]
[1748264131803,0.49007082,109970.0,109960.0,0.002]
[1748264133359,0.50461167,109970.0,109960.0,0.002]
[1748264133579,0.59111403,109970.0,109960.0,0.002]
[1748264134696,1.0456051,109970.0,109960.0,0.002]
[1748264135143,0.75645372,109970.0,109960.0,0.002]
[1748264136026,0.75545372,109970.0,109960.0,0.002]
[1748264136250,0.75745372,109970.0,109960.0,0.002]
[1748264136462,0.75007403,109970.0,109960.0,0.002]
[1748264136703,0.75107403,109970.0,109960.0,0.002]
[1748264137569,0.72741219,109970.0,109960.0,0.002]
[1748264140148,0.81841219,109970.0,109960.0,0.002]
[1748264140767,0.84570219,109970.0,109960.0,0.002]
[1748264140981,0.85208188,109970.0,109960.0,0.002]
[1748264141873,0.82479188,109970.0,109960.0,0.002]
[1748264142264,0.91431339,109970.0,109960.0,0.002]
[1748264145902,1.27797187,109970.0,109960.0,0.002]
[1748264146359,1.30526387,109970.0,109960.0,0.002]
[1748264147205,1.21574236,109970.0,109960.0,0.002]
[1748264147415,0.85208388,109970.0,109960.0,0.002]
[1748264147827,1.21574236,109970.0,109960.0,0.002]
[1748264148447,1.21474236,109970.0,109960.0,0.002]
[1748264148876,1.57774236,109970.0,109960.0,0.002]
[1748264149126,1.71726387,109970.0,109960.0,0.002]
[1748264149365,2.04726387,109970.0,109960.0,0.002]
[1748264149825,2.04526387,109970.0,109960.0,0.002]
[1748264150059,1.82949761,109970.0,109960.0,0.002]
[1748264150290,1.83149761,109970.0,109960.0,0.002]
[1748264150526,0.25009035,109950.0,109940.0,0.002]
[1748264150781,0.93064343,109950.0,109940.0,0.00214904]
[1748264151621,0.93702312,109950.0,109940.0,0.00214904]
[1748264152145,0.96156397,109950.0,109940.0,0.00214904]
[1748264152945,0.96356397,109950.0,109940.0,0.00214904]
[1748264153124,0.96556397,109950.0,109940.0,0.00214904]
[1748264153325,1.05656397,109950.0,109940.0,0.00214904]
[1748264153827,1.38380397,109950.0,109940.0,0.00214904]
[1748264154260,0.87699345,109950.0,109940.0,0.00214904]
[1748264154486,0.40555645,109950.0,109940.0,0.36580752]
[1748264154696,1.1500156,109950.0,109940.0,0.76460752]
[1748264154911,0.8500156,109950.0,109940.0,1.70414732]
[1748264155114,0.84363591,109950.0,109940.0,1.40354632]
[1748264155319,0.84363591,109950.0,109940.0,1.38882632]
[1748264155521,0.90643365,109950.0,109940.0,1.38882632]
[1748264155725,0.90643365,109950.0,109940.0,0.94668232]
[1748264155930,1.05187365,109950.0,109940.0,0.36580752]
[1748264156138,1.04987365,109950.0,109940.0,0.36580752]
[1748264156458,1.05087365,109950.0,109940.0,0.36580752]
[1748264156680,1.04887365,109950.0,109940.0,0.36580752]
[1748264156882,1.04887365,109950.0,109940.0,0.39320752]
[1748264157930,0.74443365,109950.0,109940.0,0.02954904]
[1748264158345,1.04803365,109950.0,109940.0,0.02954904]
[1748264158543,0.98523591,109950.0,109940.0,0.02954904]
[1748264160814,0.98523591,109950.0,109940.0,0.00214904]
[1748264162065,0.98523591,109950.0,109940.0,0.02924904]
[1748264162504,1.13979591,109950.0,109940.0,0.42151275]
[1748264162703,1.28523591,109950.0,109940.0,0.42151275]
[1748264163020,1.28523591,109950.0,109940.0,0.62151275]
[1748264164074,1.28523591,109950.0,109940.0,0.25784904]
[1748264164314,1.28523591,109950.0,109940.0,0.62151275]
[1748264164733,0.98523591,109950.0,109940.0,0.62151275]
[1748264165660,0.98523591,109950.0,109940.0,0.25784904]
[1748264166121,0.89423591,109950.0,109940.0,0.25784904]
[1748264167437,1.19423591,109950.0,109940.0,0.62151275]
[1748264168516,1.19423591,109950.0,109940.0,0.96151275]
[1748264171365,1.04879591,109950.0,109940.0,0.96151275]
[1748264171574,1.19423591,109950.0,109940.0,0.96151275]
[1748264176577,1.19423591,109950.0,109940.0,3.59209975]
[1748264178858,1.19423591,109950.0,109940.0,2.78537275]
[1748264179384,1.19423591,109950.0,109940.0,2.70882275]
[1748264179734,1.19423591,109950.0,109940.0,2.54973275]
[1748264179944,1.19423591,109950.0,109940.0,2.32018015]
[1748264180547,1.19423591,109950.0,109940.0,2.1281291]
[1748264182679,0.89063591,109950.0,109940.0,2.1281291]
[1748264182891,1.19423591,109950.0,109940.0,2.1281291]
[1748264183714,1.19423591,109950.0,109940.0,2.1573291]
[1748264184082,1.19423591,109950.0,109940.0,2.1851291]
[1748264184383,0.59063591,109950.0,109940.0,2.1851291]
[1748264184586,0.89423591,109950.0,109940.0,2.1851291]
[1748264184791,0.74879591,109950.0,109940.0,2.1851291]
[1748264184998,0.89423591,109950.0,109940.0,2.1851291]
[1748264186568,0.89423591,109950.0,109940.0,2.19592255]
[1748264187661,0.20109035,109950.0,109940.0,2.56862936]
[1748264187902,0.20109035,109950.0,109940.0,2.55953366]
[1748264188370,0.20109035,109950.0,109940.0,2.75054693]
[1748264188786,0.20009035,109950.0,109940.0,2.73975348]
[1748264188999,0.20009035,109950.0,109940.0,2.75417458]
[1748264189459,0.20009035,109950.0,109940.0,2.76327036]
[1748264189851,0.20009035,109950.0,109940.0,2.76427036]
[1748264190057,0.20009035,109950.0,109940.0,2.78246118]
[1748264190294,0.20918539,109950.0,109940.0,2.77336589]
[1748264190880,0.20918539,109950.0,109940.0,2.78246134]
[1748264191576,0.20918539,109950.0,109940.0,2.76804024]
[1748264192846,0.018189,109950.0,109940.0,2.76804024]
[1748264193029,0.03637866,109950.0,109940.0,2.77713553]
[1748264194455,0.00909405,109960.0,109950.0,0.54918482]
[1748264194661,0.19296145,109970.0,109960.0,0.0574]
[1748264194879,0.20205459,109970.0,109960.0,0.97787404]
[1748264195089,0.20205459,109970.0,109960.0,5.66198964]
[1748264195293,0.19296145,109970.0,109960.0,5.48182672]
[1748264195531,0.19296145,109970.0,109960.0,5.67280525]
[1748264195925,0.19296145,109970.0,109960.0,5.68642109]
[1748264196131,0.19296145,109970.0,109960.0,6.05912633]
[1748264196335,0.19296145,109970.0,109960.0,6.03551522]
[1748264196539,0.19296145,109970.0,109960.0,6.40822038]
[1748264196759,0.19296145,109970.0,109960.0,6.39912633]
[1748264196985,0.18386807,109970.0,109960.0,6.03551522]
[1748264197186,0.18386807,109970.0,109960.0,6.02642109]
[1748264197392,0.18486807,109970.0,109960.0,6.0300263]
[1748264197874,0.18486807,109970.0,109960.0,3.47257877]
[1748264198087,0.27441363,109970.0,109960.0,3.22283877]
[1748264200101,0.27441363,109970.0,109960.0,3.21923339]
[1748264202959,0.03027933,109970.0,109960.0,3.8491107]
[1748264203197,0.03027933,109970.0,109960.0,3.85820433]
[1748264203411,0.21214711,109970.0,109960.0,3.85820433]
[1748264203638,0.02118553,109970.0,109960.0,3.85820433]
[1748264203855,0.03027858,109970.0,109960.0,3.85820433]
[1748264204035,0.0393718,109970.0,109960.0,3.85820433]
[1748264204255,0.02118553,109970.0,109960.0,3.86180971]
[1748264204476,0.02018553,109970.0,109960.0,3.86180971]
[1748264204721,0.01109264,109970.0,109960.0,3.95135527]
[1748264204928,0.02018536,109970.0,109960.0,3.95135527]
[1748264205364,0.01109264,109970.0,109960.0,3.95135527]
[1748264205593,0.01109264,109970.0,109960.0,3.93693445]
[1748264206164,0.002,109970.0,109960.0,3.93793445]
[1748264206386,0.01109272,109970.0,109960.0,3.93793445]
[1748264206593,0.2182208,109980.0,109970.0,0.60544686]
[1748264206797,0.2182208,109980.0,109970.0,6.52806908]
[1748264207010,0.01818453,109980.0,109970.0,6.52806908]
[1748264207215,0.01818453,109980.0,109970.0,6.53716189]
[1748264207448,0.2182208,109980.0,109970.0,6.53716189]
[1748264207847,0.2192208,109980.0,109970.0,6.53337887]
[1748264208949,0.0100919,109980.0,109970.0,6.54247176]
[1748264209167,0.02827643,109980.0,109970.0,6.55156457]
[1748264209426,0.0383689,109980.0,109970.0,6.55156457]
[1748264210483,0.21112824,109980.0,109970.0,6.5242859]
[1748264210683,0.21112824,109980.0,109970.0,6.53337895]
[1748264211344,0.21112824,109980.0,109970.0,6.53337904]
[1748264211549,0.21112824,109980.0,109970.0,6.54247209]
[1748264212171,0.2020361,109980.0,109970.0,6.54247209]
[1748264212381,0.2020361,109980.0,109970.0,6.55156506]
[1748264213164,0.2020361,109980.0,109970.0,6.54247209]
[1748264213386,0.2020361,109980.0,109970.0,6.53337904]
[1748264213631,0.2020361,109980.0,109970.0,6.50577904]
[1748264213879,0.2020361,109980.0,109970.0,6.36947209]
[1748264214132,0.2020361,109980.0,109970.0,6.51487209]
[1748264214617,0.2020361,109980.0,109970.0,6.4966859]
[1748264215205,0.19294371,109980.0,109970.0,6.4966859]
[1748264217053,0.19294371,109980.0,109970.0,6.1316249]
[1748264217256,0.23815124,109980.0,109970.0,6.2769849]
[1748264217655,0.23815124,109980.0,109970.0,5.42801379]
[1748264217863,0.3276968,109980.0,109970.0,4.03255979]
[1748264218031,0.3276968,109980.0,109970.0,4.05568679]
[1748264218436,0.3276968,109980.0,109970.0,3.82879879]
[1748264218861,0.6276968,109980.0,109970.0,3.65455379]
[1748264219483,0.6276968,109980.0,109970.0,3.34161811]
[1748264219484,0.7730568,109980.0,109970.0,3.34161811]
[1748264220639,0.7730568,109980.0,109970.0,3.35243923]
[1748264221204,0.7730568,109980.0,109970.0,0.71443223]
[1748264221460,1.15513225,109980.0,109970.0,0.85037823]
[1748264221622,1.15513225,109980.0,109970.0,0.83069323]
[1748264221623,1.0730568,109980.0,109970.0,0.83069323]
[1748264222057,0.7730568,109980.0,109970.0,0.83069323]
[1748264222871,0.7730568,109980.0,109970.0,0.81987211]
[1748264225083,0.7730568,109980.0,109970.0,0.70361111]
[1748264226806,0.7730568,109980.0,109970.0,0.88983511]
[1748264227225,0.7730568,109980.0,109970.0,0.70361111]
[1748264228209,0.7730568,109980.0,109970.0,0.808978]
[1748264228490,0.7730568,109980.0,109970.0,1.07128711]
[1748264230718,0.6276968,109980.0,109970.0,1.07128711]
[1748264230944,0.7730968,109980.0,109970.0,1.07128711]
[1748264232264,0.7730968,109980.0,109970.0,0.85303611]
[1748264232477,0.7730968,109980.0,109970.0,0.83035811]
[1748264233867,0.7730968,109980.0,109970.0,0.70361111]
[1748264234120,0.7730968,109980.0,109970.0,0.94236511]
[1748264234349,0.7730968,109980.0,109970.0,0.578754]
[1748264234571,0.34223765,109980.0,109970.0,0.34]
[1748264234801,0.86250185,109970.0,109960.0,0.01082112]
[1748264235026,1.31565852,109970.0,109960.0,0.01082112]
[1748264235253,0.95204741,109970.0,109960.0,0.01082112]
[1748264235470,0.8480131,109940.0,109930.0,0.02895911]
[1748264235678,1.23851866,109940.0,109930.0,1.97867954]
[1748264235884,1.23851866,109940.0,109930.0,1.63867954]
[1748264236129,0.60991866,109940.0,109930.0,1.63867954]
[1748264236356,0.4919731,109940.0,109930.0,2.03327954]
[1748264236562,0.4919731,109940.0,109930.0,2.36839065]
[1748264236769,0.4919731,109940.0,109930.0,2.33146211]
[1748264237199,0.4919731,109940.0,109930.0,2.33546211]
[1748264239762,0.4919731,109940.0,109930.0,2.14189252]
[1748264241777,0.4919731,109940.0,109930.0,2.16859252]
[1748264241983,0.4919731,109940.0,109930.0,2.14189252]
[1748264243046,0.4919731,109940.0,109930.0,2.13989252]
[1748264243455,0.5190731,109940.0,109930.0,2.13889252]
[1748264243799,0.5190731,109940.0,109930.0,2.13989252]
[1748264244626,0.90861866,109940.0,109930.0,1.77628141]
[1748264244834,1.04108102,109940.0,109930.0,0.550865]
[1748264245048,1.04108102,109940.0,109930.0,0.70561111]
[1748264245618,0.95155951,109940.0,109930.0,0.70561111]
[1748264260821,0.65155951,109940.0,109930.0,0.70561111]
[1748264261893,0.65155951,109940.0,109930.0,0.342]
[1748264264961,0.74255951,109940.0,109930.0,0.342]
[1748264265557,0.74893662,109940.0,109930.0,0.342]
[1748264265758,0.74745813,109940.0,109930.0,0.342]
[1748264266116,0.74745813,109940.0,109930.0,0.341]
[1748264266591,1.25569213,109940.0,109930.0,0.001]
[1748264266807,0.86247133,109930.0,109920.0,0.002]
[1748264267016,0.95281689,109930.0,109920.0,0.002]
[1748264267240,0.95281689,109930.0,109920.0,0.36561111]
[1748264267448,0.959194,109930.0,109920.0,0.36561111]
[1748264267905,0.959194,109930.0,109920.0,0.002]
[1748264268117,0.95295229,109930.0,109920.0,0.002]
[1748264268302,0.95495229,109930.0,109920.0,0.002]
[1748264269060,0.95695229,109930.0,109920.0,0.002]
[1748264270517,0.49104785,109920.0,109910.0,0.70361111]
[1748264270715,0.58059341,109920.0,109910.0,1.09367811]
[1748264271748,0.58159341,109920.0,109910.0,1.09367811]
[1748264272147,0.60839341,109920.0,109910.0,1.09367811]
[1748264272347,0.63519341,109920.0,109910.0,1.09367811]
[1748264272549,0.60839341,109920.0,109910.0,1.09367811]
[1748264272759,0.60839341,109920.0,109910.0,1.01427511]
[1748264272952,0.69939341,109920.0,109910.0,1.01427511]
[1748264273844,0.69939341,109920.0,109910.0,0.94283211]
[1748264275881,0.74193426,109920.0,109910.0,0.34]
[1748264278739,0.56290609,109910.0,109900.0,0.002]
[1748264278947,0.79793165,109910.0,109900.0,0.91274011]
[1748264279148,0.79793165,109910.0,109900.0,0.91125111]
[1748264279365,0.79793165,109910.0,109900.0,0.70561111]
[1748264279692,0.79793165,109910.0,109900.0,0.342]
[1748264280094,0.88745316,109910.0,109900.0,0.70661111]
[1748264280382,0.88745316,109910.0,109900.0,0.70761111]
[1748264281878,0.58745316,109910.0,109900.0,0.344]
[1748264282100,0.58745316,109910.0,109900.0,0.004]
[1748264282674,0.95106427,109910.0,109900.0,0.004]
[1748264283561,0.95106427,109910.0,109900.0,0.002]
[1748264283743,0.95743498,109910.0,109900.0,0.002]
[1748264283909,0.95843498,109910.0,109900.0,0.002]
[1748264284526,0.95743498,109910.0,109900.0,0.002]
[1748264284714,0.96943498,109910.0,109900.0,0.002]
[1748264284923,1.01943498,109910.0,109900.0,0.002]
[1748264285122,1.03733176,109910.0,109900.0,0.002]
[1748264285568,1.06803628,109910.0,109900.0,0.002]
[1748264285772,1.07003628,109910.0,109900.0,0.002]
[1748264286637,1.02003628,109910.0,109900.0,0.002]
[1748264286860,1.07003628,109910.0,109900.0,0.002]
[1748264287210,1.09734428,109910.0,109900.0,0.002]
[1748264287773,1.19734428,109910.0,109900.0,0.002]
[1748264288387,1.19534428,109910.0,109900.0,0.002]
[1748264288603,1.19334428,109910.0,109900.0,0.002]
[1748264288951,1.19634428,109910.0,109900.0,0.002]
[1748264289796,0.21474046,109890.0,109880.0,0.36561111]
[1748264289995,0.64351992,109890.0,109880.0,0.36561111]
[1748264290249,0.60384602,109890.0,109880.0,0.36561111]
[1748264290983,0.60398136,109890.0,109880.0,0.36661111]
[1748264291606,0.69498136,109890.0,109880.0,0.36661111]
[1748264291860,0.69498136,109890.0,109880.0,0.36761111]
[1748264292476,0.72378136,109890.0,109880.0,0.36761111]
[1748264292895,0.81330287,109890.0,109880.0,0.36761111]
[1748264293111,0.78450287,109890.0,109880.0,0.36761111]
[1748264294885,0.69498136,109890.0,109880.0,0.36761111]
[1748264295713,0.83496051,109890.0,109880.0,1.57531211]
[1748264295917,0.98048051,109890.0,109880.0,1.57531211]
[1748264296760,0.68088051,109890.0,109880.0,1.57531211]
[1748264296981,0.98048051,109890.0,109880.0,1.57531211]
[1748264298629,0.88948051,109890.0,109880.0,1.57531211]
[1748264298825,0.58988051,109890.0,109880.0,1.93892322]
[1748264299054,0.28988051,109890.0,109880.0,1.93892322]
[1748264299262,0.20033495,109890.0,109880.0,1.93892322]
[1748264301084,0.20033495,109890.0,109880.0,1.94974895]
[1748264302336,0.19789495,109890.0,109880.0,1.94974895]
[1748264308522,0.19789495,109890.0,109880.0,1.22252673]
[1748264308731,0.19789495,109890.0,109880.0,1.94974895]
[1748264310120,0.19789495,109890.0,109880.0,1.19452673]
[1748264310328,0.19789495,109890.0,109880.0,1.55813784]
[1748264310520,0.19789495,109890.0,109880.0,1.53143784]
[1748264311139,0.28744051,109890.0,109880.0,1.16782673]
[1748264311460,0.28744051,109890.0,109880.0,1.24265684]
[1748264312792,0.31404051,109890.0,109880.0,1.24265684]
[1748264313208,0.28744051,109890.0,109880.0,1.24265684]
[1748264313999,0.31404051,109890.0,109880.0,1.24265684]
[1748264317426,0.31404051,109890.0,109880.0,0.87904573]
[1748264317625,0.31404051,109890.0,109880.0,1.24265684]
[1748264319533,0.65728136,109890.0,109880.0,0.71843684]
[1748264319724,0.65728136,109890.0,109880.0,0.01482573]
[1748264320123,0.65728136,109890.0,109880.0,0.71843684]
[1748264320664,0.65728136,109890.0,109880.0,0.70761111]
[1748264321117,0.65728136,109890.0,109880.0,0.344]
[1748264321281,0.74680287,109890.0,109880.0,0.344]
[1748264321703,0.44680287,109890.0,109880.0,0.344]
[1748264322268,0.44680287,109890.0,109880.0,0.004]
[1748264322708,0.35728136,109890.0,109880.0,0.36761111]
[1748264322933,0.65568136,109890.0,109880.0,0.36661111]
[1748264323395,0.65768136,109890.0,109880.0,0.36661111]
[1748264323944,0.65768136,109890.0,109880.0,0.36561111]
[1748264324359,0.65768136,109890.0,109880.0,0.002]
[1748264324821,0.74549088,109890.0,109880.0,0.002]
[1748264325431,0.74649088,109890.0,109880.0,0.002]
[1748264325671,0.74649088,109890.0,109880.0,0.36561111]
[1748264326335,0.65868136,109890.0,109880.0,0.36561111]
[1748264328236,0.7214716,109890.0,109880.0,0.36561111]
[1748264331500,0.32870504,109890.0,109880.0,0.36561111]
[1748264331724,0.51070522,109890.0,109880.0,0.36561111]
[1748264332131,0.52890465,109890.0,109880.0,0.15605025]
[1748264333574,0.5434455,109890.0,109880.0,0.15605025]
[1748264334410,0.48065526,109890.0,109880.0,0.15605025]
[1748264334650,0.59885526,109890.0,109880.0,0.15605025]
[1748264335279,0.57165526,109890.0,109880.0,0.18445025]
[1748264335691,0.57165526,109890.0,109880.0,0.15605025]
[1748264336120,0.48065526,109890.0,109880.0,0.15605025]
[1748264338753,0.50835526,109890.0,109880.0,0.15605025]
[1748264338989,0.60657064,109890.0,109880.0,0.15605025]
[1748264340155,0.78203188,109880.0,109870.0,0.73051111]
[1748264340330,0.87157744,109880.0,109870.0,0.73051111]
[1748264340885,0.87157744,109880.0,109870.0,0.70361111]
[1748264343460,0.20023605,109870.0,109860.0,0.76001111]
[1748264343588,0.43530161,109870.0,109860.0,0.85433911]
[1748264344822,0.43530161,109870.0,109860.0,0.85533911]
[1748264345658,0.43530161,109870.0,109860.0,0.85633911]
[1748264348533,0.58818161,109870.0,109860.0,0.85633911]
[1748264349903,0.58818161,109870.0,109860.0,1.24695022]
[1748264350151,0.58818161,109870.0,109860.0,1.2578082]
[1748264352413,0.58818161,109870.0,109860.0,0.86719709]
[1748264352663,0.91518161,109870.0,109860.0,0.84029709]
[1748264352807,0.91518161,109870.0,109860.0,0.93949109]
[1748264353675,0.91518161,109870.0,109860.0,0.71846909]
[1748264354051,0.91518161,109870.0,109860.0,0.70761111]
[1748264354255,0.91518161,109870.0,109860.0,0.89774611]
[1748264354452,0.91518161,109870.0,109860.0,0.70761111]
[1748264355860,0.91518161,109870.0,109860.0,0.344]
[1748264356274,0.94208161,109870.0,109860.0,0.344]
[1748264356701,0.98683828,109870.0,109860.0,0.344]
[1748264356899,0.91518161,109870.0,109860.0,0.344]